bitfinex/quotes_SOLUSD_20240614
["timestamp","ask_amount","ask_price","bid_price","bid_amount"]
[1718369740302,0.17,148.45,148.42,8.6128]
[1718369740492,0.34,148.45,148.42,8.6128]
[1718369740696,0.17,148.44,148.42,8.6128]
[1718369741101,0.34,148.45,148.42,8.6128]
[1718369741272,0.34,148.44,148.42,8.6128]
[1718369742207,0.34,148.44,148.41,2.493]
[1718369742382,0.34,148.44,148.41,8.613]
[1718369742900,0.34,148.44,148.43,2.4927]
[1718369743115,0.68,148.44,148.43,2.4927]
[1718369743429,0.17,148.46,148.43,2.4926]
[1718369743707,0.68,148.46,148.43,2.4926]
[1718369744975,0.68,148.46,148.42,8.6128]
[1718369749197,0.68,148.46,148.4,2.4931]
[1718369749398,2.4927,148.43,148.39,2.4933]
[1718369749700,2.6627,148.43,148.39,8.6133]
[1718369750310,2.6627,148.43,148.39,2.4933]
[1718369750510,0.17,148.43,148.38,2.4935]
[1718369750844,206.63,148.43,148.34,6.4559]
[1718369751011,2.4933,148.4,148.35,2.4939]
[1718369751204,2.4934,148.39,148.35,2.4939]
[1718369751424,2.4934,148.39,148.35,8.6139]
[1718369751728,0.51,148.38,148.34,2.4941]
[1718369752130,0.51,148.38,148.35,6.12]
[1718369753198,3.0036,148.38,148.33,17.6623]
[1718369753403,0.17,148.37,148.33,17.6623]
[1718369753604,0.34,148.37,148.34,6.12]
[1718369753826,0.34,148.37,148.33,17.6623]
[1718369754004,0.34,148.37,148.34,8.6142]
[1718369754205,0.17,148.37,148.35,2.494]
[1718369754447,0.34,148.38,148.35,2.494]
[1718369754653,0.34,148.38,148.34,6.12]
[1718369754848,0.34,148.38,148.34,8.6141]
[1718369755428,0.34,148.38,148.34,2.4941]
[1718369755630,0.17,148.37,148.34,6.12]
[1718369756041,0.34,148.37,148.34,6.12]
[1718369756547,0.34,148.37,148.33,8.6143]
[1718369756850,0.34,148.37,148.33,2.4943]
[1718369757034,0.34,148.37,148.34,6.12]
[1718369757344,0.34,148.37,148.34,8.6142]
[1718369759945,0.34,148.37,148.34,2.4942]
[1718369760162,0.34,148.37,148.34,8.6142]
[1718369761734,0.34,148.37,148.34,2.4942]
[1718369762135,0.34,148.37,148.34,8.6142]
[1718369762965,0.34,148.37,148.33,2.4943]
[1718369763166,0.34,148.37,148.34,6.12]
[1718369763369,0.34,148.37,148.33,8.6143]
[1718369763859,0.34,148.37,148.34,2.4942]
[1718369764363,0.17,148.37,148.35,2.4941]
[1718369764682,0.34,148.38,148.35,2.4941]
[1718369764836,22.5693,148.41,148.38,2.4934]
[1718369765038,6.12,148.41,148.39,2.4933]
[1718369765278,100.0,148.43,148.41,2.493]
[1718369765453,106.12,148.43,148.39,2.4933]
[1718369766053,2.4929,148.42,148.38,8.6134]
[1718369766263,0.17,148.4,148.36,8.6138]
[1718369766470,2.8332,148.4,148.36,8.6138]
[1718369766773,2.8332,148.4,148.36,6.12]
[1718369767437,2.8332,148.4,148.36,8.6139]
[1718369769474,0.34,148.4,148.35,2.494]
[1718369769668,0.17,148.39,148.35,8.614]
[1718369769846,0.34,148.39,148.35,8.614]
[1718369770949,0.34,148.39,148.35,8.6139]
[1718369771156,0.34,148.39,148.35,2.4939]
[1718369771377,0.34,148.39,148.35,8.6139]
[1718369772375,0.34,148.39,148.36,2.4938]
[1718369773964,0.34,148.39,148.35,8.614]
[1718369774380,0.17,148.38,148.31,16.4797]
[1718369774679,3.0036,148.38,148.34,8.6142]
[1718369775181,0.17,148.37,148.35,2.494]
[1718369775791,0.34,148.37,148.35,2.494]
[1718369776581,0.17,148.37,148.35,2.494]
[1718369776772,0.34,148.37,148.35,2.494]
[1718369777150,0.34,148.37,148.34,8.6141]
[1718369777379,0.34,148.37,148.34,2.4941]
[1718369777679,0.34,148.37,148.34,8.6141]
[1718369778885,0.34,148.37,148.35,2.494]
[1718369779778,0.34,148.37,148.34,8.6141]
[1718369780979,0.34,148.37,148.35,2.494]
[1718369781160,0.34,148.37,148.35,6.12]
[1718369781349,102.4931,148.41,148.36,2.4938]
[1718369781670,202.4927,148.43,148.37,6.12]
[1718369781858,108.6127,148.43,148.38,2.4935]
[1718369782889,47.8329,148.42,148.37,8.6137]
[1718369783061,0.34,148.41,148.38,2.4935]
[1718369783559,0.17,148.4,148.38,2.4935]
[1718369783759,0.17,148.4,148.38,8.6135]
[1718369783977,0.17,148.41,148.38,8.6135]
[1718369784183,0.34,148.41,148.38,8.6135]
[1718369784365,0.17,148.42,148.38,8.6135]
[1718369784573,0.68,148.42,148.38,8.6135]
[1718369785488,0.68,148.42,148.36,6.33561462]
[1718369785489,0.34,148.42,148.39,2.4933]
[1718369785670,0.17,148.43,148.4,6.12]
[1718369785880,0.68,148.43,148.39,8.6133]
[1718369788295,0.17,148.43,148.39,8.6133]
[1718369788499,212.82236632,148.47,148.41,8.6129]
[1718369788500,100.0,148.47,148.41,8.6129]
[1718369788795,2.4923,148.46,148.42,6.12]
[1718369790099,0.51,148.45,148.42,6.12]
[1718369790311,0.17,148.46,148.42,2.4928]
[1718369790484,0.17,148.46,148.43,6.12]
[1718369790814,0.17,148.46,148.44,6.12]
[1718369791016,2.4924,148.45,148.42,6.12]
[1718369791184,0.68,148.46,148.43,6.12]
[1718369795213,3.1722,148.46,148.43,6.12]
[1718369796070,2.6622,148.46,148.44,6.12]
[1718369796298,2.4922,148.46,148.44,6.12]
[1718369796704,2.4922,148.46,148.43,6.12]
[1718369796882,2.4924,148.45,148.43,6.12]
[1718369797394,2.4924,148.45,148.42,6.12]
[1718369797584,2.4923,148.46,148.42,6.12]
[1718369798908,2.4924,148.45,148.4,2.4932]
[1718369799105,2.4924,148.45,148.41,6.12]
[1718369799888,2.4923,148.46,148.42,6.12]
[1718369800091,3.1721,148.47,148.42,8.6128]
[1718369800319,2.4922,148.46,148.41,2.493]
[1718369800589,2.4922,148.46,148.43,6.12]
[1718369801003,3.1721,148.47,148.43,6.12]
[1718369801717,0.68,148.47,148.43,6.12]
[1718369801920,2.4924,148.45,148.42,6.12]
[1718369802783,2.4923,148.46,148.42,6.12]
[1718369804022,2.4923,148.46,148.43,6.12]
[1718369804519,3.1721,148.47,148.43,6.12]
[1718369804721,2.8321,148.47,148.43,6.12]
[1718369804939,2.8322,148.46,148.43,6.12]
[1718369805238,0.34,148.46,148.43,6.12]
[1718369805426,2.8321,148.47,148.43,6.12]
[1718369806021,25.0137,148.49,148.44,8.6125]
[1718369806218,25.0137,148.49,148.42,4.9855]
[1718369806219,16.4019,148.49,148.46,6.12]
[1718369806421,0.1,148.49,148.46,6.12]
[1718369806631,2.5918,148.49,148.46,6.12]
[1718369807005,0.1,148.49,148.45,2.4924]
[1718369807213,0.27,148.49,148.46,6.12]
[1718369807812,2.7617,148.49,148.46,6.12]
[1718369808543,2.4919,148.48,148.44,2.4925]
[1718369808851,0.34,148.48,148.43,2.4926]
[1718369809014,2.832,148.48,148.44,6.12]
[1718369809927,2.832,148.48,148.44,8.6125]
[1718369810240,0.34,148.48,148.43,8.6126]
[1718369810417,0.17,148.47,148.43,8.6126]
[1718369810618,0.34,148.47,148.43,8.6126]
[1718369811221,0.34,148.47,148.43,2.4926]
[1718369811543,0.34,148.47,148.43,8.6126]
[1718369812450,0.34,148.47,148.44,6.12]
[1718369812944,0.34,148.47,148.44,8.6125]
[1718369813821,0.34,148.47,148.44,6.12]
[1718369815852,0.34,148.47,148.43,2.4926]
[1718369816255,0.34,148.47,148.43,8.6126]
[1718369816553,0.17,148.46,148.43,6.12]
[1718369816746,0.34,148.46,148.42,8.6128]
[1718369818661,2.8323,148.46,148.42,6.12]
[1718369818831,0.17,148.45,148.42,6.12]
[1718369819026,3.0024,148.45,148.39,4.9868]
[1718369819251,3.0024,148.45,148.4,2.4931]
[1718369819547,3.0024,148.45,148.41,6.12]
[1718369819726,3.0024,148.45,148.41,8.613]
[1718369820456,3.0024,148.45,148.4,22.4931]
[1718369820764,5.1552,148.44,148.37,2.4937]
[1718369820944,0.17,148.42,148.38,2.4935]
[1718369821452,0.68,148.42,148.35,4.9881]
[1718369821649,2.493,148.41,148.36,2.4938]
[1718369821841,54.293,148.42,148.36,2.4938]
[1718369822056,48.173,148.42,148.37,8.6137]
[1718369823364,48.173,148.42,148.37,6.12]
[1718369824571,48.173,148.42,148.37,8.6137]
[1718369824751,2.4931,148.41,148.37,6.12]
[1718369824946,0.34,148.4,148.37,6.12]
[1718369825167,0.34,148.4,148.36,8.6138]
[1718369827553,0.34,148.39,148.35,2.494]
[1718369827754,0.34,148.39,148.35,8.614]
[1718369830976,0.17,148.38,148.31,14.9684]
[1718369831175,0.17,148.38,148.32,2.4945]
[1718369831176,2.4938,148.37,148.32,2.4945]
[1718369831362,0.17,148.37,148.33,2.4944]
[1718369831567,0.17,148.36,148.34,2.4942]
[1718369831793,0.17,148.37,148.33,6.12]
[1718369831973,0.17,148.38,148.34,6.12]
[1718369832179,0.51,148.39,148.36,2.4939]
[1718369833697,0.51,148.39,148.35,8.614]
[1718369834073,0.51,148.39,148.35,6.12]
[1718369834274,3.0034,148.39,148.35,6.12]
[1718369834479,3.0034,148.39,148.34,8.6141]
[1718369834771,0.51,148.39,148.34,8.6141]
[1718369835095,3.0035,148.39,148.34,6.12]
[1718369835895,3.0035,148.39,148.34,8.6142]
[1718369836074,2.4936,148.38,148.34,6.12]
[1718369836594,0.17,148.37,148.34,6.12]
[1718369837490,0.17,148.38,148.34,8.6142]
[1718369837694,0.34,148.38,148.34,8.6142]
[1718369838298,0.34,148.38,148.34,6.12]
[1718369838497,2.8336,148.38,148.34,6.12]
[1718369839797,2.8336,148.38,148.33,2.4943]
[1718369839979,2.8336,148.38,148.32,20.0]
[1718369840181,2.4938,148.37,148.32,22.4945]
[1718369840493,0.34,148.36,148.31,20.0]
[1718369840818,0.68,148.36,148.3,20.0]
[1718369841097,0.33333333,148.35,148.32,6.12]
[1718369842424,0.33333333,148.35,148.31,2.4946]
[1718369842613,0.33333333,148.35,148.31,8.6146]
[1718369843281,0.33333333,148.35,148.28,13.8116]
[1718369843282,0.17,148.34,148.3,2.4949]
[1718369843483,0.34,148.34,148.3,2.4949]
[1718369843694,0.51,148.34,148.3,2.4949]
[1718369844209,0.51,148.34,148.3,8.6149]
[1718369845292,0.51,148.34,148.3,2.4949]
[1718369845591,0.51,148.34,148.3,8.6149]
[1718369846414,0.51,148.34,148.3,2.4949]
[1718369847784,0.51,148.34,148.29,8.615]
[1718369849819,0.51,148.34,148.3,2.4949]
[1718369851023,0.51,148.34,148.29,8.615]
[1718369851716,3.0043,148.34,148.29,8.615]
[1718369852627,0.51,148.34,148.29,8.615]
[1718369854630,23.3452,148.38,148.29,8.615]
[1718369854631,24.9905,148.4,148.33,7.4833]
[1718369854837,0.33333333,148.39,148.36,6.12]
[1718369855130,0.33333333,148.39,148.36,8.6138]
[1718369855711,0.33333333,148.39,148.36,6.12]
[1718369856238,0.33333333,148.39,148.35,2.494]
[1718369856431,0.33333333,148.39,148.35,8.614]
[1718369859821,0.33333333,148.39,148.36,2.4938]
[1718369860016,0.33333333,148.39,148.36,8.6138]
[1718369862626,0.33333333,148.39,148.36,6.12]
[1718369865341,0.33333333,148.39,148.38,8.6135]
[1718369865538,0.33333333,148.39,148.38,6.12]
[1718369865928,0.33333333,148.39,148.38,8.6135]
[1718369868622,0.33333333,148.39,148.37,2.4936]
[1718369868815,0.33333333,148.39,148.36,20.0]
[1718369869022,0.33333333,148.39,148.36,8.6139]
[1718369869243,0.33333333,148.39,148.37,6.12]
[1718369869438,0.33333333,148.39,148.36,8.6139]
[1718369870449,0.33333333,148.39,148.37,6.12]
[1718369873224,0.33333333,148.39,148.37,8.6137]
[1718369873722,0.33333333,148.39,148.37,6.12]
[1718369874852,0.33333333,148.39,148.35,2.494]
[1718369875053,0.33333333,148.39,148.35,8.614]
[1718369876660,0.33333333,148.39,148.35,6.12]
[1718369876866,0.33333333,148.39,148.38,8.6135]
[1718369878864,0.33333333,148.39,148.38,6.12]
[1718369879939,0.33333333,148.39,148.37,6.12]
[1718369884365,0.33333333,148.39,148.35,2.494]
[1718369884551,0.33333333,148.39,148.36,6.12]
[1718369886336,0.33333333,148.39,148.33,2.4942]
[1718369886337,0.17,148.38,148.33,2.4942]
[1718369886536,0.68,148.38,148.32,2.4945]
[1718369886766,48.1736,148.38,148.33,6.12]
[1718369886946,0.33333333,148.37,148.33,6.12]
[1718369887269,0.33333333,148.37,148.34,6.12]
[1718369890384,0.33333333,148.37,148.34,8.6142]
[1718369890887,0.33333333,148.37,148.35,6.12]
[1718369891271,0.33333333,148.37,148.35,8.614]
[1718369891887,0.33333333,148.37,148.35,6.12]
[1718369893688,0.33333333,148.37,148.36,6.12]
[1718369894398,0.33333333,148.37,148.35,6.12]
[1718369897205,0.33333333,148.37,148.33,2.4943]
[1718369897413,0.33333333,148.37,148.35,6.12]
[1718369898994,2.82703333,148.37,148.35,6.12]
[1718369899197,2.82703333,148.37,148.34,6.12]
[1718369899896,2.82713333,148.37,148.34,6.12]
[1718369902167,2.82713333,148.37,148.33,6.12]
[1718369902573,0.33333333,148.37,148.33,6.12]
[1718369902805,0.33333333,148.37,148.33,8.6144]
[1718369903181,0.33333333,148.37,148.34,6.12]
[1718369903898,2.82703333,148.37,148.34,6.12]
[1718369904081,2.82703333,148.37,148.32,2.4945]
[1718369904280,2.82703333,148.37,148.33,6.12]
[1718369904599,2.82703333,148.37,148.32,2.4945]
[1718369904897,10.10934564,148.34,148.33,6.12]
[1718369905309,2.4937,148.37,148.33,6.12]
[1718369906206,0.33333333,148.36,148.33,6.12]
[1718369908696,0.33333333,148.36,148.33,8.6144]
[1718369910081,10.10961139,148.34,148.33,8.6144]
[1718369910898,10.11051216,148.34,148.33,8.6144]
[1718369911205,10.11051216,148.34,148.33,13.6032]
[1718369911512,10.11051216,148.35,148.34,2.4942]
[1718369911714,10.11051216,148.35,148.34,8.6142]
[1718369913119,0.17,148.39,148.34,8.6142]
[1718369913288,0.68,148.39,148.35,6.12]
[1718369914309,3.1734,148.39,148.35,6.12]
[1718369915993,2.4938,148.37,148.32,2.4945]
[1718369916205,2.4938,148.37,148.34,6.12]
[1718369917513,2.4937,148.38,148.34,6.12]
[1718369919814,3.1734,148.39,148.35,6.12]
[1718369919984,0.68,148.39,148.35,6.12]
[1718369920187,3.1734,148.39,148.34,8.6141]
[1718369920799,8.09510251,148.38,148.34,8.6141]
[1718369920989,8.09510251,148.38,148.34,6.12]
[1718369921316,8.09510251,148.38,148.35,6.12]
[1718369921914,3.1734,148.39,148.35,6.12]
[1718369922818,2.4936,148.38,148.35,6.12]
[1718369924395,2.4936,148.38,148.34,6.12]
[1718369925327,2.4936,148.38,148.32,2.4945]
[1718369925510,2.4936,148.38,148.34,6.12]
[1718369926526,8.09516131,148.37,148.33,6.12]
[1718369926827,10.58886131,148.37,148.33,6.12]
[1718369927122,2.4937,148.37,148.33,6.12]
[1718369927494,105.6668,148.39,148.33,6.12]
[1718369927495,2.4936,148.38,148.33,8.6144]
[1718369927719,8.09575953,148.37,148.34,6.12]
[1718369927902,19.42926409,148.4,148.36,6.12]
[1718369928103,8.09486537,148.39,148.36,6.12]
[1718369928304,2.6631,148.41,148.36,8.6139]
[1718369928505,10.58746135,148.4,148.32,24.9889]
[1718369928728,10.10381045,148.34,148.33,2.4944]
[1718369929046,10.10386265,148.34,148.33,8.6144]
[1718369929330,2.4934,148.39,148.34,2.4942]
[1718369929633,2.4934,148.39,148.35,6.12]
[1718369931227,8.09446618,148.38,148.35,6.12]
[1718369932428,3.0033,148.4,148.35,6.12]
[1718369932599,8.2641962,148.39,148.35,6.12]
[1718369932922,8.0941962,148.38,148.35,6.12]
[1718369933619,8.0941962,148.38,148.34,22.4942]
[1718369933827,8.0941962,148.38,148.33,22.4943]
[1718369934030,8.0941962,148.38,148.35,6.12]
[1718369934334,10.5877962,148.38,148.33,22.4944]
[1718369934497,2.6635,148.39,148.33,2.4944]
[1718369934704,8.09494533,148.38,148.34,6.12]
[1718369935323,0.17,148.37,148.33,6.12]
[1718369935520,0.68,148.37,148.33,6.12]
[1718369935908,0.68,148.37,148.33,8.6144]
[1718369937824,8.09544804,148.36,148.33,8.6144]
[1718369939050,0.68,148.37,148.33,8.6144]
[1718369940013,0.68,148.37,148.33,2.4944]
[1718369940236,0.68,148.37,148.33,8.6144]
[1718369941128,8.09554133,148.36,148.33,6.12]
[1718369941335,8.09554133,148.36,148.34,2.4942]
[1718369942034,0.68,148.37,148.34,2.4942]
[1718369942819,0.68,148.37,148.33,8.6143]
[1718369943135,8.09544919,148.36,148.33,8.6143]
[1718369943339,0.68,148.37,148.33,8.6143]
[1718369943840,0.68,148.37,148.33,2.4943]
[1718369944032,0.68,148.37,148.32,28.6145]
[1718369944234,0.68,148.37,148.32,22.4945]
[1718369944419,0.68,148.37,148.33,2.4944]
[1718369945730,8.09544303,148.36,148.33,2.4944]
[1718369946648,8.09544303,148.36,148.33,8.6144]
[1718369946945,0.17,148.35,148.3,16.219]
[1718369947245,8.09675892,148.34,148.3,8.6148]
[1718369948731,8.09675892,148.34,148.31,2.4947]
[1718369949832,8.09675892,148.34,148.3,6.12]
[1718369950038,0.17,148.38,148.3,7.4847]
[1718369950344,0.17,148.36,148.31,8.6147]
[1718369950551,8.09655481,148.35,148.31,8.6147]
[1718369951432,8.09655481,148.35,148.31,6.12]
[1718369951741,8.09655481,148.35,148.32,2.4946]
[1718369952138,0.68,148.36,148.32,2.4946]
[1718369952327,0.34,148.36,148.32,2.4946]
[1718369952528,0.34,148.35,148.32,2.4946]
[1718369952746,0.34,148.35,148.31,8.6146]
[1718369953649,0.34,148.35,148.31,6.12]
[1718369954860,0.34,148.35,148.31,8.6147]
[1718369956466,0.34,148.36,148.31,8.6147]
[1718369956626,21.92574726,148.38,148.33,8.6143]
[1718369956828,2.4936,148.38,148.33,8.6143]
[1718369957152,10.58954312,148.37,148.32,6.12]
[1718369957358,2.4938,148.37,148.32,8.6145]
[1718369957558,8.6138,148.37,148.32,2.4945]
[1718369958944,2.4938,148.37,148.32,2.4945]
[1718369959265,8.6138,148.37,148.32,2.4945]
[1718369960262,0.33333334,148.36,148.32,2.4945]
[1718369966785,8.94723334,148.36,148.31,22.4946]
[1718369967097,2.6641,148.35,148.3,8.6148]
[1718369967692,0.33333334,148.34,148.3,8.6148]
[1718369968280,0.33333334,148.34,148.31,2.4947]
[1718369972560,0.33333334,148.34,148.33,2.4944]
[1718369972760,0.33333334,148.34,148.32,6.12]
[1718369972761,0.33333334,148.34,148.32,8.6145]
[1718369974072,0.33333334,148.34,148.32,2.4945]
[1718369974268,0.33333334,148.34,148.31,2.4946]
[1718369974493,0.33333334,148.34,148.31,8.6146]
[1718369975481,0.33333334,148.34,148.31,2.4946]
[1718369976591,0.33333334,148.34,148.3,28.6148]
[1718369977285,0.33333334,148.34,148.31,2.4947]
[1718369977583,0.33333334,148.34,148.31,8.6147]
[1718369978084,0.33333334,148.34,148.32,2.4945]
[1718369979881,0.33333334,148.34,148.31,9.2474928]
[1718369980286,0.33333334,148.34,148.32,8.6146]
[1718369981882,0.33333334,148.34,148.3,24.9898]
[1718369981883,0.33333334,148.34,148.3,20.0]
[1718369982083,0.33333334,148.34,148.3,6.12]
[1718369982084,2.82763334,148.34,148.3,6.12]
[1718369982968,0.33333334,148.34,148.3,8.6149]
[1718369985780,0.33333334,148.34,148.31,2.4947]
[1718369991906,0.33333334,148.34,148.32,2.4946]
[1718369994408,0.33333334,148.34,148.31,2.4946]
[1718369997901,0.33333334,148.34,148.32,2.4945]
[1718369998219,6.45333334,148.34,148.3,2.4948]
[1718369998420,6.12,148.31,148.25,6.0213]
[1718369998592,6.12,148.31,148.26,2.4955]
[1718369998795,8.43224964,148.3,148.25,8.6156]
[1718369999099,0.33333334,148.3,148.26,2.4955]
[1718369999533,6.29,148.29,148.23,16.145]
[1718369999746,6.29,148.29,148.25,2.4957]
[1718369999905,0.33333334,148.28,148.25,2.4957]
[1718370000419,0.33333334,148.28,148.24,2.4959]
[1718370000625,0.33333334,148.28,148.25,2.4957]
[1718370001214,0.33333334,148.28,148.27,2.4954]
[1718370001600,0.33333334,148.28,148.26,2.4955]
[1718370002101,0.33333334,148.28,148.27,2.4954]
[1718370002637,0.33333334,148.28,148.26,2.4955]
[1718370003742,0.33333334,148.28,148.22,14.9773]
[1718370003944,0.33333334,148.28,148.24,2.4958]
[1718370006119,0.33333334,148.28,148.23,26.12]
[1718370006352,0.33333334,148.28,148.25,2.4957]
[1718370006524,0.33333334,148.28,148.24,2.4958]
[1718370007626,6.45333334,148.28,148.24,2.4958]
[1718370008843,6.45333334,148.28,148.25,2.4957]
[1718370009020,0.33333334,148.28,148.26,2.4956]
[1718370009543,0.33333334,148.28,148.27,2.4954]
[1718370009723,0.33333334,148.28,148.27,31.0742]
[1718370009937,0.33333334,148.28,148.27,51.0742]
[1718370010743,0.33333334,148.28,148.27,41.0925]
[1718370012155,0.33333334,148.28,148.27,51.0742]
[1718370013952,0.33333334,148.28,148.27,22.4954]
[1718370014263,0.33333334,148.28,148.27,28.6154]
[1718370017958,0.33333334,148.28,148.27,22.4954]
[1718370018265,0.33333334,148.28,148.23,2.496]
[1718370018554,2.82863334,148.28,148.22,2.4962]
[1718370018758,0.33333334,148.28,148.23,8.616]
[1718370019152,6.45333334,148.28,148.23,2.496]
[1718370019353,6.45333334,148.28,148.23,8.616]
[1718370019562,6.45333334,148.28,148.23,2.496]
[1718370020138,6.45333334,148.28,148.22,20.0]
[1718370020359,8.94863334,148.28,148.22,8.6161]
[1718370021250,8.94863334,148.28,148.23,2.496]
[1718370021451,6.45333334,148.28,148.23,2.496]
[1718370022362,6.12,148.27,148.23,2.496]
[1718370022864,0.33333334,148.26,148.23,2.496]
[1718370026268,0.33333334,148.26,148.24,2.4958]
[1718370026442,0.33333334,148.26,148.23,2.496]
[1718370026647,0.33333334,148.26,148.22,22.4962]
[1718370026964,0.33333334,148.26,148.22,2.4962]
[1718370027263,0.33333334,148.26,148.22,22.4962]
[1718370027843,0.33333334,148.26,148.22,2.4962]
[1718370028365,2.82893334,148.26,148.21,22.5963]
[1718370028553,6.12,148.25,148.21,2.5963]
[1718370028741,6.12,148.24,148.21,2.5963]
[1718370029674,6.12,148.24,148.21,0.1]
[1718370030356,2.4959,148.24,148.21,0.1]
[1718370030559,6.29,148.23,148.21,0.1]
[1718370030757,6.46,148.23,148.21,0.1]
[1718370031162,6.12,148.22,148.21,0.1]
[1718370031660,113.6997,148.27,148.21,0.1]
[1718370031661,6.2132,148.27,148.23,2.496]
[1718370031876,12.3332,148.27,148.23,2.496]
[1718370032057,6.2132,148.27,148.24,2.4959]
[1718370032259,6.2132,148.27,148.23,2.496]
[1718370032260,6.12,148.27,148.23,2.496]
[1718370032468,8.6154,148.27,148.22,2.4962]
[1718370032775,6.12,148.25,148.21,2.5963]
[1718370033248,0.17,148.27,148.22,2.4962]
[1718370033569,0.68,148.27,148.23,2.496]
[1718370033874,6.12,148.26,148.23,2.496]
[1718370034168,6.12,148.25,148.21,2.5963]
[1718370036772,6.12,148.25,148.21,0.1]
[1718370037866,6.12,148.25,148.21,2.5964]
[1718370039544,6.12,148.25,148.21,0.1]
[1718370039976,3.1755,148.27,148.21,2.5963]
[1718370040278,0.51,148.27,148.23,2.496]
[1718370040466,7.4897,148.28,148.23,2.496]
[1718370040778,16.105,148.28,148.22,7.02823537]
[1718370040975,8.6153,148.28,148.23,2.496]
[1718370041272,6.12,148.27,148.22,2.4961]
[1718370041778,6.12,148.28,148.23,2.4961]
[1718370042165,8.6153,148.28,148.23,2.4961]
[1718370042370,6.12,148.27,148.22,2.4961]
[1718370042673,8.6154,148.27,148.22,2.4961]
[1718370043298,8.6156,148.26,148.21,2.5963]
[1718370043462,8.6156,148.26,148.21,0.1]
[1718370044862,8.6156,148.26,148.21,2.5964]
[1718370045271,6.12,148.26,148.21,2.5964]
[1718370045477,8.6155,148.27,148.22,2.4962]
[1718370045962,2.4955,148.27,148.22,2.4962]
[1718370046164,8.6155,148.27,148.22,2.4962]
[1718370046358,2.4953,148.28,148.22,2.4962]
[1718370046586,6.63,148.27,148.22,2.4962]
[1718370047091,9.1254,148.27,148.22,2.4962]
[1718370048095,3.0054,148.27,148.22,2.4962]
[1718370048395,9.1254,148.27,148.21,8.7163]
[1718370050090,8.6154,148.27,148.22,2.4962]
[1718370050397,8.6154,148.27,148.22,6.12]
[1718370050398,2.4954,148.27,148.22,6.12]
[1718370050799,8.6154,148.27,148.21,8.7163]
[1718370050970,2.4956,148.26,148.21,8.7163]
[1718370052193,12.24,148.29,148.23,6.12]
[1718370052415,2.4953,148.28,148.23,8.6159]
[1718370052708,2.4954,148.27,148.23,6.12]
[1718370052911,8.6154,148.27,148.21,8.7163]
[1718370053202,8.6154,148.27,148.22,22.4962]
[1718370054185,2.4954,148.27,148.22,22.4962]
[1718370054400,0.34,148.3,148.23,2.496]
[1718370054580,2.4953,148.28,148.23,8.616]
[1718370054985,8.6151,148.29,148.23,8.616]
[1718370055185,2.495,148.3,148.24,2.4959]
[1718370055393,2.4951,148.29,148.24,2.4959]
[1718370055693,8.6151,148.29,148.24,2.4959]
[1718370058195,2.4948,148.31,148.26,6.12]
[1718370058511,2.4948,148.31,148.26,8.6156]
[1718370058694,2.4948,148.31,148.26,6.12]
[1718370060916,2.4948,148.31,148.26,8.6156]